fUSD/lending_fUSD_20240502
["ID","MTS","AMOUNT","RATE_DAILY","PERIOD"]
[325296488,1714684282736,-2511.05,0.00030958,2]
[325296489,1714684282745,-9131.57,0.00030958,2]
[325296490,1714684282755,-1248.2,0.00030958,2]
[325296491,1714684282765,-813.38,0.00030958,2]
[325296492,1714684282774,-1330.29,0.00030958,2]
[325296493,1714684282783,-968.45,0.00030958,2]
[325296494,1714684282793,-1699.42,0.00030958,2]
[325296495,1714684282803,-17863.75,0.00030958,2]
[325296496,1714684282813,-500.0,0.00030958,2]
[325296497,1714684282823,-545.48,0.00030958,2]
[325296498,1714684282832,-2198.26,0.00030958,2]
[325296499,1714684282842,-301.37048683,0.00030958,2]
[325296500,1714684282851,-1039.11,0.00030958,2]
[325296501,1714684282861,-1442.85,0.00030958,2]
[325296502,1714684282870,-1325.64,0.00030958,2]
[325296503,1714684282879,-500.0,0.00030958,2]
[325296504,1714684282888,-614.45,0.00030958,2]
[325296505,1714684282897,-13308.57,0.00030958,2]
[325296506,1714684282907,-1287.73,0.00030958,2]
[325296507,1714684282916,-10866.31,0.00030958,2]
[325296508,1714684282925,-500.0,0.00030958,2]
[325296509,1714684282935,-2056.82,0.00030958,2]
[325296510,1714684282944,-500.0,0.00030958,2]
[325296511,1714684282953,-500.0,0.00030958,2]
[325296512,1714684282963,-7164.57,0.00030958,2]
[325296513,1714684282972,-500.0,0.00030958,2]
[325296514,1714684282981,-370.78079866,0.00030958,2]
[325296515,1714684282991,-500.0,0.00030958,2]
[325296516,1714684283000,-500.0,0.00030958,2]
[325296517,1714684283010,-500.0,0.00030958,2]
[325296518,1714684283019,-500.0,0.00030958,2]
[325296519,1714684283029,-3362.13,0.00030958,2]
[325296520,1714684283039,-605.84,0.00030958,2]
[325296521,1714684283049,-1390.14,0.00030958,2]
[325296522,1714684283058,-4267.61,0.00030958,2]
[325296523,1714684283067,-1557.08,0.00030958,2]
[325296524,1714684283077,-151.0,0.00030958,7]
[325296525,1714684283086,-1070.08,0.00030958,2]
[325296526,1714684283095,-2777.11,0.00030958,2]
[325296527,1714684283105,-589.67,0.00030958,2]
[325296528,1714684283114,-994.43,0.00030958,2]
[325296529,1714684283127,-500.0,0.00030958,2]
[325296530,1714684283137,-3654.85,0.00030958,2]
[325296531,1714684283146,-500.0,0.00030958,2]
[325296532,1714684283155,-151.0,0.00030958,7]
[325296533,1714684283165,-522.59,0.00030958,2]
[325296534,1714684283176,-2159.8,0.00030958,2]
[325296535,1714684283186,-2547.27,0.00030958,2]
[325296536,1714684283195,-1115.28,0.00030958,2]
[325296537,1714684283206,-861.29,0.00030958,2]
[325296538,1714684283216,-5133.36,0.00030958,2]
[325296539,1714684283226,-994.89,0.00030958,2]
[325296540,1714684283235,-1312.13,0.00030958,2]
[325296541,1714684283244,-595.07,0.00030958,2]
[325296542,1714684283254,-1788.75,0.00030958,2]
[325296543,1714684283263,-151.0,0.00030958,7]
[325296544,1714684283275,-500.0,0.00030958,2]
[325296545,1714684283284,-552.07,0.00030958,2]
[325296546,1714684283295,-3112.16,0.00030958,2]
[325296547,1714684283307,-500.0,0.00030958,2]
[325296548,1714684283317,-1325.11,0.00030958,2]
[325296549,1714684283326,-2398.96,0.00030958,2]
[325296550,1714684283336,-743.56,0.00030958,2]
[325296551,1714684283345,-500.0,0.00030958,2]
[325296552,1714684283355,-721.07,0.00030958,2]
[325296553,1714684283364,-21906.74,0.00030958,2]
[325296554,1714684283374,-2595.86,0.00030958,2]
[325296555,1714684283383,-6661.19,0.00030958,2]
[325296556,1714684283392,-2515.48,0.00030958,2]
[325296557,1714684283402,-5657.08,0.00030958,2]
[325296558,1714684283412,-500.0,0.00030958,2]
[325296559,1714684283421,-504.52,0.00030958,2]
[325296560,1714684283431,-165.459702,0.00030958,7]
[325296561,1714684283441,-1525.1,0.00030958,2]
[325296562,1714684283451,-3556.58,0.00030958,2]
[325296563,1714684283462,-500.0,0.00030958,2]
[325296564,1714684283471,-1264.5,0.00030958,2]
[325296565,1714684283480,-3148.59,0.00030958,2]
[325296566,1714684283490,-1333.64,0.00030958,2]
[325296567,1714684283499,-2577.5,0.00030958,2]
[325296568,1714684283508,-2594.17,0.00030958,2]
[325296569,1714684283518,-1173.51,0.00030958,2]
[325296570,1714684283528,-6397.57,0.00030958,2]
[325296571,1714684283537,-10831.97,0.00030958,2]
[325296572,1714684283546,-500.0,0.00030958,2]
[325296573,1714684283559,-2060.58,0.00030958,2]
[325296574,1714684283568,-5018.06,0.00030958,2]
[325296575,1714684283577,-817.74,0.00030958,2]
[325296576,1714684283586,-500.0,0.00030958,2]
[325296577,1714684283595,-389.42562629,0.00030958,2]
[325296578,1714684283604,-950.94,0.00030958,2]
[325296579,1714684283614,-500.0,0.00030958,2]
[325296580,1714684283623,-1239.93,0.00030958,2]
[325296581,1714684283632,-2591.06,0.00030958,2]
[325296582,1714684283642,-1104.14,0.00030958,2]
[325296583,1714684283651,-1334.0,0.00030958,2]
[325296584,1714684283660,-500.0,0.00030958,2]
[325296585,1714684283669,-438.612677,0.00030958,7]
[325296586,1714684283678,-2156.62,0.00030958,2]
[325296587,1714684283687,-1694.93,0.00030958,2]
[325296588,1714684283696,-500.0,0.00030958,2]
[325296589,1714684283705,-500.0,0.00030958,2]
[325296590,1714684283715,-15307.19696952,0.00030958,2]
[325296591,1714684284206,-7600.64259491,0.00030958,2]
[325296592,1714684284218,-330.08011053,0.00030958,2]
[325296593,1714684284229,-476.2010242,0.00030958,2]
[325296594,1714684284256,-151.0,0.00030684,7]
[325296595,1714684284266,-1848.7835296,0.00030958,2]
[325296596,1714684284277,-368.9719517,0.00030958,2]
[325296597,1714684285002,-500.0,0.00030136,2]
[325296598,1714684285011,-737.42,0.00030136,2]
[325296599,1714684285021,-500.0,0.00030136,2]
[325296600,1714684285030,-500.0,0.0003041,2]
[325296601,1714684285040,-737.42,0.0003041,2]
[325296602,1714684285051,-737.42,0.00030684,2]
[325296603,1714684285060,-3666.84659852,0.00030958,2]
[325296604,1714684285072,-4043.23692891,0.00030958,2]
[325296605,1714684285084,-23978.19029211,0.00030958,2]
[325296606,1714684285094,-2873.92,0.00030958,2]
[325296607,1714684285104,-438.612677,0.00030958,7]
[325296608,1714684285114,-1315.37,0.00030958,2]
[325296609,1714684285124,-4749.79,0.00030958,2]
[325296610,1714684285137,-500.0,0.00030958,2]
[325296611,1714684285146,-12678.83,0.00030958,2]
[325296612,1714684285156,-769.23,0.00030958,2]
[325296613,1714684285167,-1475.49,0.00030958,2]
[325296614,1714684285179,-1054.21,0.00030958,2]
[325296615,1714684285188,-4076.92,0.00030958,2]
[325296616,1714684285198,-3131.82,0.00030958,2]
[325296617,1714684285208,-500.0,0.00030958,2]
[325296618,1714684285218,-1246.08,0.00030958,2]
[325296619,1714684285228,-500.0,0.00030958,2]
[325296620,1714684285237,-500.0,0.00030958,2]
[325296621,1714684285247,-10562.0370309,0.00030958,2]
[325296622,1714684285259,-10322.3429691,0.00030958,2]
[325296623,1714684285270,-500.0,0.00030958,2]
[325296624,1714684285280,-500.0,0.00030958,2]
[325296625,1714684285290,-2340.19,0.00030958,2]
[325296626,1714684285302,-504.55645039,0.00030958,2]
[325296627,1714684285311,-500.0,0.00030958,2]
[325296628,1714684285320,-837.58,0.00030958,2]
[325296629,1714684285330,-5183.92,0.00030958,2]
[325296630,1714684285339,-2641.82,0.00030958,2]
[325296631,1714684285349,-19728.02,0.00030958,2]
[325296632,1714684285358,-500.0,0.00030958,2]
[325296633,1714684285368,-894.83003525,0.00030958,2]
[325296634,1714684287221,-1269.872327,0.00014999,2]
[325296635,1714684287231,-961.96,0.00030126,3]
[325296636,1714684287240,-500.0,0.00030136,2]
[325296637,1714684287249,-500.0,0.00030136,2]
[325296638,1714684287258,-500.0,0.00030136,2]
[325296639,1714684287268,-500.0,0.00030136,2]
[325296640,1714684287278,-500.0,0.0003041,2]
[325296641,1714684287287,-500.0,0.00030684,2]
[325296642,1714684287297,-791.44996475,0.00030958,2]
[325296643,1714684287308,-50.08370825,0.00030958,2]
[325296644,1714684287426,-500.0,0.0003041,2]
[325296645,1714684287435,-480.39629175,0.00030958,2]
[325296646,1714684287445,-500.0,0.00030958,2]
[325296647,1714684287454,-151.835124,0.00030958,7]
[325296648,1714684287464,-6726.05,0.00030958,2]
[325296649,1714684287475,-642.7,0.00030958,2]
[325296650,1714684287484,-502.71521423,0.00030958,2]
[325296651,1714684287493,-14013.91,0.00030958,2]
[325296652,1714684287503,-1575.24,0.00030958,2]
[325296653,1714684287513,-896.64,0.00030958,2]
[325296654,1714684287524,-151.835124,0.00030958,7]
[325296655,1714684287534,-2789.55,0.00030958,2]
[325296656,1714684287544,-852.65,0.00030958,2]
[325296657,1714684287555,-1921.25,0.00030958,2]
[325296658,1714684287565,-1384.99,0.00030958,2]
[325296659,1714684287575,-500.0,0.00030958,2]
[325296660,1714684287586,-2313.4,0.00030958,2]
[325296661,1714684287596,-4197.63,0.00030958,2]
[325296662,1714684287605,-1775.28,0.00030958,2]
[325296663,1714684287617,-3054.57,0.00030958,2]
[325296664,1714684287626,-1575.19,0.00030958,2]
[325296665,1714684287637,-1682.62,0.00030958,2]
[325296666,1714684287647,-588.14,0.00030958,2]
[325296667,1714684287657,-500.0,0.00030958,2]
[325296668,1714684287667,-1149.12105402,0.00030958,2]
[325296669,1714684287696,-509.58,0.00030136,2]
[325296670,1714684287706,-88.55,0.00030136,2]
[325296671,1714684299307,16357.9935,0.000129,2]
[325296673,1714684462899,189262.96221592,0.000129,2]
[325296674,1714684464170,6254.81732401,0.000129,2]
[325296675,1714684480812,44720.52395496,0.000129,2]
[325296676,1714684494227,558.3796997,0.000129,2]
[325296677,1714684496223,561.65908793,0.000129,2]
[325296678,1714684503631,150.0,0.00012897,2]
[325296682,1714684755228,2040.85316132,0.00012,2]
[325296683,1714684794930,256.90838187,0.00012897,2]
[325296684,1714684794959,8752.96349718,0.00012897,2]
[325296685,1714684802639,150.0,0.00012,2]
[325296686,1714684802826,265.16694317,0.00012,2]
[325296702,1714685431710,-324.14591879,0.00013991,2]
[325296703,1714685431720,-155.0,0.00013992,2]
[325296704,1714685431730,-1036.73785114,0.00014,2]
[325296705,1714685431739,-214.24802093,0.00014,2]
[325296706,1714685431749,-150.0,0.00014996,2]
[325296707,1714685431759,-10554.25564865,0.00014997,2]
[325296708,1714685431769,-617.74433242,0.00015,2]
[325296709,1714685431779,-1224.62477475,0.00016597,2]
[325296710,1714685431789,-812.68842514,0.00016598,2]
[325296711,1714685431801,-4741.05157486,0.00016598,2]
[325296712,1714685431827,-604.0,0.00016599,2]
[325296713,1714685431836,-418.75091594,0.000166,2]
[325296714,1714685431847,-282.53,0.000166,2]
[325296715,1714685431857,-545.60520279,0.00016691,2]
[325296716,1714685431867,-279.05,0.00016712,2]
[325296717,1714685431876,-182.29,0.00016712,2]
[325296718,1714685431886,-177.3,0.00017,2]
[325296719,1714685431896,-2088.17,0.00017,2]
[325296720,1714685431905,-267.65,0.00017,2]
[325296721,1714685431914,-19591.67106291,0.00017,2]
[325296722,1714685431925,-7288.3114396,0.00017149,2]
[325296723,1714685431935,-16352.6156,0.00017159,2]
[325296724,1714685431944,-3128.23519288,0.00017168,2]
[325296725,1714685431953,-260.69,0.0001726,4]
[325296726,1714685431964,-2795.8,0.00017513,2]
[325296727,1714685431973,-1273.63,0.00017529,2]
[325296728,1714685431982,-200.0,0.0001776,2]
[325296729,1714685431992,-3789.28592363,0.0001776,2]
[325296730,1714685432004,-254.49407637,0.0001776,2]
[325296731,1714685432014,-412.89798414,0.00017776,2]
[325296732,1714685432027,-2203.97488,0.00017776,2]
[325296733,1714685432039,-7383.12713586,0.00017776,2]
[325296734,1714685432049,-2558.85,0.00017807,2]
[325296735,1714685432059,-527.68,0.000179,2]
[325296736,1714685432068,-450.0,0.00018,3]
[325296738,1714685432078,-261.17,0.00018191,2]
[325296740,1714685432088,-261.17,0.00018241,2]
[325296742,1714685432098,-150.0,0.00018245,2]
[325296743,1714685432107,-261.17,0.00018291,2]
[325296744,1714685432117,-261.17,0.00018341,2]
[325296745,1714685432127,-261.17,0.00018391,2]
[325296746,1714685432136,-8923.36,0.00018414,2]
[325296747,1714685432145,-261.17,0.00018441,2]
[325296748,1714685432155,-950.37,0.00018446,2]
[325296749,1714685432164,-261.17,0.00018491,2]
[325296750,1714685432173,-261.17,0.0001854,2]
[325296751,1714685432183,-3472.69,0.00018541,2]
[325296752,1714685432192,-261.17,0.0001859,2]
[325296753,1714685432202,-175.72,0.00018612,2]
[325296754,1714685432212,-261.17,0.0001864,2]
[325296755,1714685432222,-261.17,0.0001869,2]
[325296756,1714685432232,-261.17,0.0001874,2]
[325296757,1714685432241,-261.17,0.0001879,2]
[325296758,1714685432251,-151.0,0.00018793,2]
[325296759,1714685432261,-159.26029187,0.00018811,2]
[325296760,1714685432270,-261.17,0.0001884,2]
[325296761,1714685432279,-261.17,0.0001889,2]
[325296762,1714685432289,-261.17,0.0001894,2]
[325296763,1714685432299,-299.072,0.00018989,2]
[325296764,1714685432308,-261.17,0.00018989,2]
[325296765,1714685432318,-224.99,0.00019003,2]
[325296766,1714685432327,-261.17,0.00019039,2]
[325296767,1714685432336,-261.17,0.00019089,2]
[325296768,1714685432346,-261.17,0.00019139,2]
[325296769,1714685432356,-159.26029187,0.00019185,2]
[325296770,1714685432366,-152.0,0.00019341,2]
[325296771,1714685432376,-1728.1048211,0.000198,2]
[325296772,1714685432385,-500.0,0.00019838,2]
[325296773,1714685432395,-500.0,0.00019847,2]
[325296774,1714685432405,-500.0,0.00019856,2]
[325296775,1714685432415,-500.0,0.00019865,2]
[325296776,1714685432425,-500.0,0.00019874,2]
[325296777,1714685432434,-500.0,0.00019882,2]
[325296778,1714685432444,-400.81,0.00019889,3]
[325296779,1714685432459,-153.0,0.00019889,2]
[325296780,1714685432469,-601.22,0.00019889,3]
[325296781,1714685432478,-300.61,0.00019889,3]
[325296782,1714685432488,-500.0,0.00019891,2]
[325296783,1714685432499,-340173.16688724,0.00019899,2]
[325296784,1714685432511,-5314.0001,0.00019899,2]
[325296785,1714685432524,-46423.00998,0.00019899,2]
[325296786,1714685432535,-15066.99998,0.00019899,2]
[325296787,1714685432547,-447.53187127,0.00019899,2]
[325296788,1714685432574,-982.21119649,0.00019899,2]
[325296789,1714685432586,-21039.73587942,0.00019899,2]
[325296790,1714685432597,-638.49582452,0.00019899,2]
[325296791,1714685432609,-590.12,0.00019899,2]
[325296792,1714685432621,-1231.98607209,0.00019899,2]
[325296793,1714685432633,-7255.52333214,0.00019899,2]
[325296794,1714685432649,-13385.39801569,0.00019899,2]
[325296795,1714685432661,-2791.05680083,0.00019899,2]
[325296796,1714685432672,-611.366104,0.00019899,2]
[325296797,1714685432684,-7552.18801264,0.00019899,2]
[325296798,1714685432696,-402.0,0.00019899,2]
[325296799,1714685432707,-11368.06495405,0.00019899,2]
[325296800,1714685432719,-853.15156266,0.00019899,2]
[325296801,1714685432731,-741.8811006,0.00019899,2]
[325296802,1714685433106,-8902.88752742,0.00019899,2]
[325296803,1714685433119,-523.28591813,0.00019899,2]
[325296804,1714685433132,-527.18712473,0.00019899,2]
[325296814,1714685437672,-258.47419654,0.0001399,2]
[325296815,1714685437681,-25.27893066,0.00019889,2]
[325296816,1714685437692,-162.75511005,0.00019889,2]
[325296817,1714685437702,-150.31,0.00019889,3]
[325296818,1714685437711,-2901.47820073,0.00019899,2]
[325296819,1714685437723,-392.28137862,0.00019899,2]
[325296820,1714685437734,-514.0,0.00019899,2]
[325296821,1714685437746,-3223.7629553,0.00019899,2]
[325296822,1714685437757,-64500.00000001,0.00019899,2]
[325296823,1714685437769,-8766.76781148,0.00019899,2]
[325296824,1714685437788,-9755.88664348,0.00019899,2]
[325296825,1714685437800,-2412.92750001,0.00019899,2]
[325296826,1714685437812,-255.53745705,0.00019899,2]
[325296827,1714685437823,-86645.74294614,0.00019899,2]
[325296828,1714685437834,-313.27,0.00019899,2]
[325296829,1714685437846,-305.4913623,0.00019899,2]
[325296830,1714685437857,-3055.35126391,0.00019899,2]
[325296831,1714685437868,-3251.55806868,0.00019899,2]
[325296832,1714685437880,-4032.61770325,0.00019899,2]
[325296833,1714685437892,-9591.11475617,0.00019899,2]
[325296834,1714685437901,-500.0,0.000199,2]
[325296835,1714685437910,-150.99,0.000199,2]
[325296836,1714685437920,-500.0,0.0002,3]
[325296837,1714685437929,-153.85011202,0.00020117,2]
[325296838,1714685437938,-527.68,0.00020138,2]
[325296839,1714685437947,-153.09613825,0.00020411,2]
[325296840,1714685437957,-154.0,0.00020437,2]
[325296841,1714685437967,-1783.75,0.00020505,2]
[325296842,1714685437976,-223.65370089,0.00020567,2]
[325296843,1714685437985,-335.47614572,0.00020568,2]
[325296844,1714685437994,-12847.43368077,0.00020569,2]
[325296845,1714685438006,-8569.60155393,0.00020569,2]
[325296846,1714685438018,-518.94618326,0.00020569,2]
[325296847,1714685438040,-509.16789362,0.00020569,2]
[325296848,1714685438052,-1454.85068842,0.00020569,2]
[325296849,1714685438061,-266.98,0.0002065,2]
[325296850,1714685438070,-6309.73,0.00020796,2]
[325296851,1714685438080,-800.0,0.00020877,2]
[325296852,1714685438089,-155.0,0.000209,2]
[325296853,1714685438098,-178.3,0.00020961,2]
[325296854,1714685438107,-633.52,0.00020963,2]
[325296856,1714685438116,-155.0,0.00020985,2]
[325296857,1714685438126,-160.30085168,0.00021163,2]
[325296858,1714685438135,-801.62,0.00021259,3]
[325296859,1714685438144,-1202.44,0.00021259,3]
[325296860,1714685438153,-601.22,0.00021259,3]
[325296861,1714685438162,-10314.49,0.00021263,2]
[325296862,1714685438171,-202.85905703,0.00021532,2]
[325296863,1714685438181,-159.26029187,0.00021572,2]
[325296864,1714685438190,-250.0,0.00021918,2]
[325296865,1714685438199,-159.26029187,0.00021989,2]
[325296866,1714685438208,-212.68,0.00022159,2]
[325296867,1714685438219,-159.26029187,0.00022274,2]
[325296868,1714685438227,-693.52782593,0.00022316,2]
[325296869,1714685438239,-134.90217407,0.00022316,2]
[325296870,1714685438248,-527.68,0.00022375,2]
[325296871,1714685438257,-300.0,0.00022456,2]
[325296872,1714685438266,-154.69574402,0.00022491,2]
[325296873,1714685438275,-472.32,0.00022494,2]
[325296874,1714685438285,-152.96433896,0.00022512,2]
[325296875,1714685438294,-152.33231404,0.00023013,2]
[325296876,1714685438303,-158.9,0.00023017,2]
[325296877,1714685438312,-167.0,0.00023343,2]
[325296878,1714685438321,-171.44,0.00023368,2]
[325296879,1714685438330,-178.3,0.00023582,2]
[325296880,1714685438339,-300.0,0.00023826,2]
[325296881,1714685438348,-155.40440603,0.00023842,2]
[325296882,1714685438357,-155.0,0.00023864,2]
[325296883,1714685438367,-177.63320564,0.00024202,2]
[325296884,1714685438376,-154.87041203,0.00024291,2]
[325296885,1714685438385,-527.68,0.00024613,2]
[325296886,1714685438394,-888.0,0.00024657,2]
[325296887,1714685438404,-1728.10482108,0.00024868,2]
[325296888,1714685438413,-3956.9278,0.00024959,10]
[325296889,1714685438422,-429.92,0.00024968,2]
[325296890,1714685438432,-429.92,0.00024975,2]
[325296891,1714685438441,-429.92,0.00024982,2]
[325296892,1714685438454,-429.92,0.00024988,2]
[325296893,1714685438464,-429.92,0.00024995,2]
[325296894,1714685438473,-429.92,0.00025001,2]
[325296895,1714685438483,-429.92,0.00025008,2]
[325296896,1714685438492,-429.92,0.00025014,2]
[325296897,1714685438503,-429.92,0.00025021,2]
[325296898,1714685438511,-429.92,0.00025028,2]
[325296899,1714685438520,-429.92,0.00025034,2]
[325296900,1714685438530,-429.92,0.00025041,2]
[325296901,1714685438539,-155.0,0.00025045,3]
[325296902,1714685438548,-429.92,0.00025047,2]
[325296903,1714685438558,-429.92,0.00025054,2]
[325296904,1714685438567,-429.92,0.0002506,2]
[325296905,1714685438577,-429.92,0.00025067,2]
[325296906,1714685438586,-429.92,0.00025074,2]
[325296907,1714685438595,-429.92,0.0002508,2]
[325296908,1714685438605,-429.92,0.00025087,2]
[325296909,1714685438615,-429.92,0.00025093,2]
[325296910,1714685438626,-341.15,0.00025155,120]
[325296911,1714685438635,-472.32,0.00025305,2]
[325296912,1714685438644,-159.26029187,0.00025554,2]
[325296913,1714685438654,-1290.8,0.00025594,2]
[325296914,1714685438663,-159.26029187,0.0002596,2]
[325296915,1714685438672,-888.0,0.00026027,4]
[325296916,1714685438682,-152.96433896,0.00026147,2]
[325296917,1714685438691,-178.3,0.00026202,120]
[325296918,1714685438701,-150.0,0.000264,5]
[325296919,1714685438710,-527.68,0.0002685,2]
[325296920,1714685438720,-170.28,0.00026868,2]
[325296921,1714685438729,-150.0,0.000269,5]
[325296922,1714685438738,-154.9857782,0.00027016,2]
[325296923,1714685438747,-909.0,0.000271,3]
[325296924,1714685438756,-5395.0,0.000271,3]
[325296925,1714685438765,-155.30252456,0.00027121,2]
[325296926,1714685438774,-1364.8,0.00027265,2]
[325296927,1714685438783,-693.0,0.00027302,2]
[325296928,1714685438793,-888.0,0.00027397,6]
[325296929,1714685438802,-832.13,0.00027397,10]
[325296930,1714685438811,-150.0,0.000274,5]
[325296931,1714685438820,-2500.0,0.000276,2]
[325296932,1714685438829,-150.0,0.000279,5]
[325296933,1714685438838,-472.32,0.00028117,2]
[325296934,1714685438847,-341.15,0.000283,120]
[325296935,1714685438856,-150.0,0.000284,5]
[325296936,1714685438865,-1233.26464772,0.00028531,2]
[325296937,1714685438874,-153.09613825,0.00028616,2]
[325296938,1714685438883,-888.0,0.00028767,9]
[325296939,1714685438892,-410.112561,0.00028767,14]
[325296940,1714685438901,-178.3,0.00028822,120]
[325296941,1714685438910,-150.0,0.000289,6]
[325296942,1714685438919,-159.26029187,0.00028907,2]
[325296943,1714685438928,-1000.0,0.000293,2]
[325296944,1714685438937,-300.0,0.000293,2]
[325296945,1714685438946,-1044.82,0.00029315,2]
[325296946,1714685438955,-838.68,0.00029315,2]
[325296947,1714685438964,-150.0,0.000294,6]
[325296948,1714685438974,-167.0,0.0002942,2]
[325296949,1714685438983,-410.112561,0.00029589,14]
[325296950,1714685438992,-3463.78,0.00029621,60]
[325296951,1714685439001,-1675.05,0.00029621,2]
[325296952,1714685439010,-154.87041203,0.00029756,2]
[325296953,1714685439019,-257.03149954,0.0002983,2]
[325296954,1714685439034,-155.0,0.0002983,2]
[325296955,1714685439043,-200.0,0.0002983,2]
[325296956,1714685439052,-191.61333399,0.00029831,2]
[325296957,1714685439062,-155.0,0.00029831,2]
[325296958,1714685439072,-22782.38898661,0.00029833,2]
[325296959,1714685439081,-150.0,0.000299,6]
[325296960,1714685439090,-154.75697142,0.00029903,2]
[325296961,1714685439100,-111550.11858365,0.00029905,5]
[325296962,1714685439109,-90482.841,0.00029906,2]
[325296963,1714685439119,-1728.10482108,0.00029936,2]
[325296964,1714685439128,-1000.12345678,0.0003,2]
[325296965,1714685439138,-3901.74185922,0.00030006,4]
[325296966,1714685439147,-5000.0,0.0003003,4]
[325296967,1714685439158,-893.39635599,0.0003003,3]
[325296968,1714685439167,-155.16124094,0.00030031,4]
[325296969,1714685439177,-12054.64145863,0.00030031,4]
[325296970,1714685439186,-2997.64801777,0.00030033,4]
[325296971,1714685439196,-155.0,0.00030033,4]
[325296972,1714685439205,-262.42010681,0.00030033,4]
[325296973,1714685439215,-2485.27505268,0.00030033,4]
[325296974,1714685439225,-402.34162791,0.00030033,4]
[325296975,1714685439234,-155.0,0.00030033,4]
[325296976,1714685439244,-444.46701666,0.00030034,4]
[325296977,1714685439254,-487.4952018,0.00030034,4]
[325296978,1714685439263,-3425.6867,0.00030036,2]
[325296979,1714685439272,-100000.0,0.00030036,2]
[325296980,1714685439282,-1000.0,0.00030036,2]
[325296981,1714685439291,-3693.478,0.00030036,2]
[325296982,1714685439301,-343.03170892,0.00030036,2]
[325296983,1714685439311,-153.07877804,0.00030036,2]
[325296984,1714685439320,-182.29,0.00030041,2]
[325296985,1714685439329,-175.8,0.000301,2]
[325296986,1714685439339,-155.0,0.00030134,4]
[325296987,1714685439348,-193.79434914,0.00030134,4]
[325296988,1714685439358,-204.07025334,0.00030134,4]
[325296989,1714685439367,-2357.1227683,0.00030134,4]
[325296990,1714685439376,-155.0,0.00030134,4]
[325296991,1714685439386,-409.41182409,0.00030134,4]
[325296992,1714685439395,-641.61516885,0.00030134,4]
[325296993,1714685439405,-288.13764245,0.00030134,4]
[325296994,1714685439415,-3002.24760821,0.00030134,4]
[325296995,1714685439425,-193.78382803,0.00030134,4]
[325296996,1714685439435,-226.20204184,0.00030134,4]
[325296997,1714685439445,-194.36220808,0.00030134,4]
[325296998,1714685439455,-206.88313584,0.00030134,4]
[325296999,1714685439469,-305.39391058,0.00030134,4]
[325297000,1714685439478,-357.43812805,0.00030134,4]
[325297001,1714685439488,-157.01559308,0.00030134,4]
[325297002,1714685439498,-466.11757934,0.00030134,4]
[325297003,1714685439507,-2217.06939239,0.00030134,2]
[325297004,1714685439517,-155.19937725,0.00030134,4]
[325297005,1714685439527,-155.0,0.00030134,4]
[325297006,1714685439541,-155.0,0.00030134,4]
[325297007,1714685439551,-236.4795796,0.00030134,4]
[325297008,1714685439560,-155.0,0.00030134,4]
[325297009,1714685439570,-500.0,0.00030136,2]
[325297010,1714685439580,-500.0,0.00030136,2]
[325297011,1714685439589,-500.0,0.00030136,2]
[325297012,1714685439598,-500.0,0.00030136,2]
[325297014,1714685439610,-500.0,0.00030136,2]
[325297016,1714685439620,-326.65388804,0.00030136,2]
[325297018,1714685439631,-500.0,0.00030136,2]
[325297019,1714685439640,-500.0,0.00030136,2]
[325297021,1714685439650,-500.0,0.00030136,2]
[325297023,1714685439660,-500.0,0.00030136,2]
[325297025,1714685439672,-500.0,0.00030136,2]